[Event "28th North American Open"]
[Site "Las Vegas"]
[Date "2018.12.29"]
[Round "6"]
[White "Nguyen, Emily"]
[Black "Yang, Kevin"]
[Result "0-1"]
[ECO "A45"]
[WhiteElo "2262"]
[BlackElo "2135"]
[PlyCount "50"]
[EventDate "2018.12.??"]
[EventType "swiss"]
[EventRounds "9"]
[EventCountry "USA"]
[TimeControl "6600+10"]
[WhiteClock "0:07:50"]
[BlackClock "0:50:38"]

1. d4 {[%emt 0:19:40]} Nf6 {[%emt 0:19:50]} 2. Bg5 {[%emt 0:01:50]} d5 {
[%emt 0:00:00]} 3. Bxf6 {[%emt 0:00:00]} exf6 {[%emt 0:02:39]} 4. e3 {[%emt 0:
00:00]} c6 {[%emt 0:00:00]} 5. c4 {[%emt 0:00:00]} dxc4 {[%emt 0:02:02]} 6.
Bxc4 {[%emt 0:00:00]} Bd6 {[%emt 0:00:00]} 7. Nf3 {[%emt 0:01:51]} f5 {[%emt 0:
00:00]} 8. O-O {[%emt 0:04:46]} O-O {[%emt 0:00:00]} 9. Nc3 {[%emt 0:03:37]}
Nd7 {[%emt 0:00:00]} 10. Qc2 {[%emt 0:01:20]} Nf6 {[%emt 0:01:05]} 11. Rfd1 {
[%emt 0:23:58]} Qe7 {[%emt 0:00:00]} 12. a3 {[%emt 0:06:23]} a5 {[%emt 0:07:15]
} 13. Rac1 {[%emt 0:03:10]} Ne4 {[%emt 0:15:51]} 14. Bd3 {[%emt 0:09:28]} Re8 {
[%emt 0:05:01]} 15. Na4 {[%emt 0:07:07]} Be6 {[%emt 0:13:15]} 16. Re1 {[%emt 0:
16:30]} Qd8 {[%emt 0:00:00]} 17. Rcd1 {[%emt 0:11:58]} Bd5 {[%emt 0:00:00]} 18.
h3 {[%emt 0:00:00]} g6 {[%emt 0:00:00]} 19. Nd2 {[%emt 0:00:00]} Nxf2 {[%emt 0:
00:00]} 20. Kxf2 {[%emt 0:00:00]} Qh4+ {[%emt 0:00:00]} 21. Kg1 {[%emt 0:00:00]
} Bxg2 {[%emt 0:00:00]} 22. Nc4 {[%emt 0:00:00]} Bf3 {[%emt 0:00:00]} 23. Qf2 {
[%emt 0:00:00]} Qxh3 {[%emt 0:00:00]} 24. Qxf3 {[%emt 0:00:00]} Qxf3 {[%emt 0:
00:00]} 25. Nxd6 {[%emt 0:00:00]} Qg3+ {[%emt 0:00:00]} 0-1

[Event "28th North American Open"]
[Site "Las Vegas"]
[Date "2018.12.28"]
[Round "6"]
[White "Li, Eric"]
[Black "Calugar, Arthur"]
[Result "1/2-1/2"]
[ECO "D85"]
[WhiteElo "2045"]
[BlackElo "2208"]
[PlyCount "48"]
[EventDate "2018.12.??"]
[EventType "swiss"]
[EventRounds "9"]
[EventCountry "USA"]
[TimeControl "6600+10"]
[WhiteClock "0:45:54"]
[BlackClock "1:03:13"]

1. d4 {[%emt 0:19:40]} Nf6 2. c4 {[%emt 0:00:00]} g6 {[%emt 0:20:00]} 3. Nc3 {
[%emt 0:00:00]} d5 {[%emt 0:00:00]} 4. cxd5 {[%emt 0:00:00]} Nxd5 {[%emt 0:00:
00]} 5. e4 {[%emt 0:00:00]} Nxc3 {[%emt 0:00:00]} 6. bxc3 {[%emt 0:00:00]} Bg7
{[%emt 0:00:00]} 7. Nf3 {[%emt 0:00:00]} c5 {[%emt 0:00:00]} 8. Rb1 {[%emt 0:
00:00]} O-O {[%emt 0:00:00]} 9. Be2 {[%emt 0:00:00]} Qa5 {[%emt 0:00:00]} 10.
Qd2 {[%emt 0:00:00]} cxd4 {[%emt 0:00:00]} 11. cxd4 {[%emt 0:00:00]} Qxd2+ {
[%emt 0:00:49]} 12. Bxd2 {[%emt 0:00:00]} Nc6 {[%emt 0:00:08]} 13. d5 {[%emt 0:
04:43]} Nd4 {[%emt 0:00:32]} 14. Nxd4 {[%emt 0:04:18]} Bxd4 {[%emt 0:00:00]}
15. Bb4 {[%emt 0:03:50]} Bf6 {[%emt 0:01:52]} 16. f4 {[%emt 0:04:11]} Rd8 {
[%emt 0:03:30]} 17. Bf3 {[%emt 0:04:18]} e5 {[%emt 0:04:30]} 18. dxe6 {[%emt 0:
07:45]} Bxe6 {[%emt 0:15:51]} 19. e5 {[%emt 0:03:09]} Bf5 {[%emt 0:00:34]} 20.
Rc1 {[%emt 0:04:54]} Re8 {[%emt 0:00:00]} 21. Bxb7 {[%emt 0:08:28]} Rab8 {
[%emt 0:03:10]} 22. Bc6 {[%emt 0:00:14]} Rec8 {[%emt 0:00:00]} 23. exf6 {
[%emt 0:02:47]} Rxb4 {[%emt 0:00:00]} 24. O-O {[%emt 0:00:00]} Rb6 {[%emt 0:00:
01]} 1/2-1/2

[Event "28th North American Open"]
[Site "Las Vegas"]
[Date "2018.12.29"]
[Round "6"]
[White "Encinas Varela, David"]
[Black "Sandager, Stephen"]
[Result "1-0"]
[ECO "C24"]
[WhiteElo "1885"]
[BlackElo "2064"]
[PlyCount "57"]
[EventDate "2018.12.??"]
[EventType "swiss"]
[EventRounds "9"]
[EventCountry "USA"]
[TimeControl "6600+10"]
[WhiteClock "0:30:41"]
[BlackClock "0:07:34"]

1. e4 {[%emt 0:19:40]} e5 2. Bc4 {[%emt 0:00:00]} Nf6 {[%emt 0:20:00]} 3. d3 {
[%emt 0:00:00]} Bc5 {[%emt 0:00:00]} 4. Be3 {[%emt 0:00:00]} Bxe3 {[%emt 0:00:
00]} 5. fxe3 {[%emt 0:00:00]} O-O {[%emt 0:00:00]} 6. Nf3 {[%emt 0:00:00]} c6 {
[%emt 0:08:19]} 7. O-O {[%emt 0:00:00]} d5 {[%emt 0:00:00]} 8. exd5 {[%emt 0:
02:32]} cxd5 {[%emt 0:00:00]} 9. Bb3 {[%emt 0:00:00]} Nc6 {[%emt 0:00:19]} 10.
Nc3 {[%emt 0:02:34]} h6 {[%emt 0:05:08]} 11. Qe1 {[%emt 0:02:11]} d4 {[%emt 0:
20:42]} 12. exd4 {[%emt 0:06:38]} exd4 {[%emt 0:00:41]} 13. Ne4 {[%emt 0:00:00]
} Nxe4 {[%emt 0:06:30]} 14. Qxe4 {[%emt 0:00:00]} Qe8 {[%emt 0:02:38]} 15. Qxe8
{[%emt 0:49:37]} Rxe8 {[%emt 0:00:45]} 16. Ng5 {[%emt 0:00:00]} hxg5 {[%emt 0:
04:34]} 17. Bxf7+ {[%emt 0:00:00]} Kf8 {[%emt 0:00:14]} 18. Bxe8+ {[%emt 0:00:
00]} Kxe8 {[%emt 0:00:00]} 19. Rae1+ {[%emt 0:00:00]} Kd8 {[%emt 0:05:27]} 20.
Rf8+ {[%emt 0:00:00]} Kc7 {[%emt 0:04:13]} 21. Ree8 {[%emt 0:00:00]} Rb8 {
[%emt 0:08:28]} 22. Rf7+ {[%emt 0:00:00]} Bd7 {[%emt 0:00:37]} 23. Rxb8 {
[%emt 0:00:00]} Nxb8 {[%emt 0:00:00]} 24. Rxg7 {[%emt 0:00:00]} g4 {[%emt 0:00:
00]} 25. h4 {[%emt 0:00:00]} gxh3 {[%emt 0:11:31]} 26. gxh3 {[%emt 0:00:00]}
Kc6 {[%emt 0:11:57]} 27. h4 {[%emt 0:00:00]} Bf5 {[%emt 0:00:00]} 28. h5 {
[%emt 0:00:00]} Nd7 {[%emt 0:00:00]} 29. h6 {[%emt 0:00:57]} 1-0

[Event "28th North American Open"]
[Site "Las Vegas"]
[Date "2018.12.29"]
[Round "7.1"]
[White "Patel, Advait"]
[Black "Bai, Jinshi"]
[Result "1/2-1/2"]
[ECO "C42"]
[WhiteElo "2455"]
[BlackElo "2568"]
[PlyCount "40"]
[EventDate "2018.12.??"]
[EventType "swiss"]
[EventRounds "9"]
[EventCountry "USA"]
[TimeControl "6600+10"]
[WhiteClock "1:13:50"]
[BlackClock "0:53:36"]

1. e4 {[%emt 0:00:00]} e5 {[%emt 0:00:00]} 2. Nf3 {[%emt 0:00:00]} Nf6 {
[%emt 0:00:00]} 3. Nxe5 {[%emt 0:00:00]} d6 {[%emt 0:00:00]} 4. Nf3 {[%emt 0:
00:22]} Nxe4 {[%emt 0:00:00]} 5. d4 {[%emt 0:01:57]} d5 {[%emt 0:00:00]} 6. Bd3
{[%emt 0:00:19]} Be7 {[%emt 0:00:00]} 7. O-O {[%emt 0:00:24]} O-O {[%emt 0:00:
00]} 8. c4 {[%emt 0:01:58]} Nc6 {[%emt 0:00:00]} 9. Nc3 {[%emt 0:02:58]} Nxc3 {
[%emt 0:00:00]} 10. bxc3 {[%emt 0:00:10]} dxc4 {[%emt 0:00:00]} 11. Bxc4 {
[%emt 0:00:10]} Bf5 {[%emt 0:00:00]} 12. Re1 {[%emt 0:00:56]} Bd6 {[%emt 0:00:
00]} 13. h3 {[%emt 0:10:36]} h6 {[%emt 0:03:31]} 14. Bd3 {[%emt 0:06:45]} Qf6 {
[%emt 0:11:13]} 15. Rb1 {[%emt 0:00:59]} b6 {[%emt 0:00:46]} 16. Qc2 {[%emt 0:
10:06]} Bxh3 {[%emt 0:42:08]} 17. gxh3 {[%emt 0:00:32]} Qxf3 {[%emt 0:00:10]}
18. Be4 {[%emt 0:00:11]} Qxh3 {[%emt 0:00:10]} 19. Bxc6 {[%emt 0:00:57]} Bh2+ {
[%emt 0:00:10]} 20. Kh1 {[%emt 0:00:10]} Bf4+ {[%emt 0:01:46]} 1/2-1/2

[Event "28th North American Open"]
[Site "Las Vegas"]
[Date "2018.12.29"]
[Round "7.2"]
[White "Zierk, Steven"]
[Black "Pakleza, Zbigniew"]
[Result "1/2-1/2"]
[ECO "A43"]
[WhiteElo "2510"]
[BlackElo "2506"]
[PlyCount "25"]
[EventDate "2018.12.??"]
[EventType "swiss"]
[EventRounds "9"]
[EventCountry "USA"]
[TimeControl "6600+10"]
[WhiteClock "0:53:00"]
[BlackClock "1:17:41"]

1. d4 {[%emt 0:00:00]} c5 {[%emt 0:00:00]} 2. dxc5 {[%emt 0:00:13]} e6 {
[%emt 0:00:00]} 3. Nc3 {[%emt 0:03:35]} Bxc5 {[%emt 0:00:00]} 4. Ne4 {[%emt 0:
02:51]} Nf6 {[%emt 0:00:00]} 5. Nxc5 {[%emt 0:05:04]} Qa5+ {[%emt 0:00:00]} 6.
c3 {[%emt 0:00:33]} Qxc5 {[%emt 0:00:00]} 7. Nf3 {[%emt 0:03:54]} O-O {[%emt 0:
03:10]} 8. Bf4 {[%emt 0:09:25]} d5 {[%emt 0:02:15]} 9. e3 {[%emt 0:03:31]} Nc6
{[%emt 0:10:53]} 10. Bd3 {[%emt 0:10:29]} Qe7 {[%emt 0:09:23]} 11. Ne5 {
[%emt 0:02:06]} Nd7 {[%emt 0:07:51]} 12. Nxd7 {[%emt 0:05:50]} Bxd7 {[%emt 0:
00:57]} 13. O-O {[%emt 0:11:39]} 1/2-1/2

[Event "28th North American Open"]
[Site "Las Vegas"]
[Date "2018.12.29"]
[Round "7.3"]
[White "Zhu, Jack"]
[Black "Balakrishnan, Praveen"]
[Result "1-0"]
[ECO "C42"]
[WhiteElo "2364"]
[BlackElo "2418"]
[PlyCount "235"]
[EventDate "2018.12.??"]
[EventType "swiss"]
[EventRounds "9"]
[EventCountry "USA"]
[TimeControl "6600+10"]
[WhiteClock "0:38:45"]
[BlackClock "0:00:03"]

1. e4 {[%emt 0:00:00]} e5 {[%emt 0:00:00]} 2. Nf3 {[%emt 0:00:00]} Nf6 {
[%emt 0:00:00]} 3. Nxe5 {[%emt 0:00:00]} d6 {[%emt 0:00:00]} 4. Nf3 {[%emt 0:
00:00]} Nxe4 {[%emt 0:00:00]} 5. Qe2 {[%emt 0:00:00]} Qe7 {[%emt 0:00:00]} 6.
d3 {[%emt 0:00:00]} Nf6 {[%emt 0:00:00]} 7. Bg5 {[%emt 0:00:00]} Qxe2+ {
[%emt 0:00:00]} 8. Bxe2 {[%emt 0:00:00]} Be7 {[%emt 0:00:00]} 9. c4 {[%emt 0:
00:00]} h6 {[%emt 0:04:20]} 10. Bf4 {[%emt 0:00:02]} Nc6 {[%emt 0:04:57]} 11.
Nc3 {[%emt 0:00:10]} Bf5 {[%emt 0:06:46]} 12. O-O {[%emt 0:00:46]} O-O-O {
[%emt 0:03:24]} 13. d4 {[%emt 0:00:24]} Nd7 {[%emt 0:27:26]} 14. Nd5 {[%emt 0:
04:43]} Rhe8 {[%emt 0:05:05]} 15. Rfe1 {[%emt 0:00:59]} Bf8 {[%emt 0:03:29]}
16. Be3 {[%emt 0:08:36]} Nb6 {[%emt 0:05:33]} 17. Nxb6+ {[%emt 0:01:39]} axb6 {
[%emt 0:00:26]} 18. d5 {[%emt 0:00:10]} Ne5 {[%emt 0:02:34]} 19. Nd4 {[%emt 0:
00:10]} Bd3 {[%emt 0:01:30]} 20. b3 {[%emt 0:12:00]} Bxe2 {[%emt 0:03:04]} 21.
Rxe2 {[%emt 0:00:10]} g6 {[%emt 0:08:19]} 22. Rae1 {[%emt 0:02:03]} Kd7 {
[%emt 0:06:41]} 23. Bd2 {[%emt 0:04:06]} Nd3 {[%emt 0:03:54]} 24. Rxe8 {
[%emt 0:00:20]} Rxe8 {[%emt 0:00:10]} 25. Rxe8 {[%emt 0:00:10]} Kxe8 {[%emt 0:
00:10]} 26. Kf1 {[%emt 0:00:47]} Bg7 {[%emt 0:01:49]} 27. Nb5 {[%emt 0:00:14]}
Kd7 {[%emt 0:00:53]} 28. Ke2 {[%emt 0:00:10]} Nc5 {[%emt 0:01:34]} 29. Bc3 {
[%emt 0:00:10]} Be5 {[%emt 0:01:57]} 30. Ke3 {[%emt 0:07:08]} c6 {[%emt 0:04:
42]} 31. f4 {[%emt 0:00:27]} Bxc3 {[%emt 0:06:31]} 32. Nxc3 {[%emt 0:00:10]} f5
{[%emt 0:00:41]} 33. h3 {[%emt 0:01:29]} h5 {[%emt 0:02:42]} 34. b4 {[%emt 0:
09:30]} Na6 {[%emt 0:00:42]} 35. a3 {[%emt 0:00:10]} Nc7 {[%emt 0:01:24]} 36.
Kd3 {[%emt 0:04:33]} cxd5 {[%emt 0:02:55]} 37. cxd5 {[%emt 0:00:47]} b5 {
[%emt 0:00:10]} 38. Ke3 {[%emt 0:12:55]} Ke7 {[%emt 0:00:10]} 39. Kf3 {[%emt 0:
00:10]} Kf6 {[%emt 0:02:12]} 40. Kg3 {[%emt 0:00:10]} Kf7 {[%emt 0:00:24]} 41.
Kh4 {[%emt 0:00:10]} Kf6 {[%emt 0:00:00]} 42. g3 {[%emt 0:00:00]} Kf7 {[%emt 0:
00:00]} 43. Kg5 {[%emt 0:00:00]} Kg7 {[%emt 0:00:00]} 44. g4 {[%emt 0:00:00]}
hxg4 {[%emt 0:00:00]} 45. hxg4 {[%emt 0:00:00]} fxg4 {[%emt 0:00:00]} 46. Kxg4
{[%emt 0:00:00]} Kf6 {[%emt 0:00:00]} 47. Kf3 {[%emt 0:00:00]} Kf5 {[%emt 0:00:
00]} 48. Ne4 {[%emt 0:00:00]} Ne8 {[%emt 0:00:00]} 49. Ng3+ {[%emt 0:00:00]}
Kf6 {[%emt 0:00:00]} 50. Ke4 {[%emt 0:00:00]} g5 {[%emt 0:00:00]} 51. fxg5+ {
[%emt 0:00:00]} Kxg5 {[%emt 0:00:00]} 52. Kd4 {[%emt 0:00:00]} Kf6 {[%emt 0:00:
00]} 53. Ne4+ {[%emt 0:00:00]} Ke7 {[%emt 0:00:00]} 54. Nd2 {[%emt 0:00:00]}
Nf6 {[%emt 0:00:00]} 55. Nf1 {[%emt 0:00:00]} Ne8 {[%emt 0:00:00]} 56. Ng3 {
[%emt 0:00:00]} Kf6 {[%emt 0:00:00]} 57. Ke4 {[%emt 0:00:00]} Kg5 {[%emt 0:00:
00]} 58. Ne2 {[%emt 0:00:00]} Kf6 {[%emt 0:00:00]} 59. Nd4 {[%emt 0:00:00]} Nc7
{[%emt 0:00:00]} 60. Nb3 {[%emt 0:00:00]} Ke7 {[%emt 0:00:00]} 61. Na5 {
[%emt 0:00:00]} b6 {[%emt 0:00:00]} 62. Nb3 {[%emt 0:00:00]} Ne8 {[%emt 0:00:
00]} 63. Nc1 {[%emt 0:00:00]} Nf6+ {[%emt 0:00:00]} 64. Kd4 {[%emt 0:00:00]}
Ne8 {[%emt 0:00:00]} 65. Ne2 {[%emt 0:00:00]} Nc7 {[%emt 0:00:00]} 66. Ke4 {
[%emt 0:00:00]} Kf7 {[%emt 0:00:00]} 67. Nd4 {[%emt 0:00:00]} Ke7 {[%emt 0:00:
00]} 68. Nf3 {[%emt 0:00:00]} Ne8 {[%emt 0:00:00]} 69. Nh4 {[%emt 0:00:00]}
Nf6+ {[%emt 0:00:00]} 70. Kd4 {[%emt 0:00:00]} Ne8 {[%emt 0:00:00]} 71. Ng2 {
[%emt 0:00:00]} Nc7 {[%emt 0:00:00]} 72. Ke4 {[%emt 0:00:00]} Kf7 {[%emt 0:00:
08]} 73. Nf4 {[%emt 0:00:00]} Kf6 {[%emt 0:00:19]} 74. Nh3 {[%emt 0:00:00]} Ke7
{[%emt 0:00:11]} 75. Ng5 {[%emt 0:00:00]} Kf6 {[%emt 0:00:15]} 76. Nf3 {
[%emt 0:00:00]} Kf7 {[%emt 0:00:27]} 77. Nd4 {[%emt 0:00:00]} Ke7 {[%emt 0:00:
10]} 78. Nf5+ {[%emt 0:00:00]} Kd7 {[%emt 0:00:10]} 79. Kd4 {[%emt 0:00:00]}
Ne8 {[%emt 0:00:11]} 80. Kd3 {[%emt 0:00:00]} Nf6 {[%emt 0:00:22]} 81. Kd4 {
[%emt 0:00:00]} Ne8 {[%emt 0:00:10]} 82. Nh6 {[%emt 0:00:46]} Ke7 {[%emt 0:00:
11]} 83. Ng4 {[%emt 0:00:13]} Kf7 {[%emt 0:00:25]} 84. Nf2 {[%emt 0:00:54]} Ke7
{[%emt 0:00:10]} 85. Nd1 {[%emt 0:00:12]} Kf6 {[%emt 0:00:15]} 86. Ke4 {
[%emt 0:00:14]} Nc7 {[%emt 0:00:47]} 87. Ne3 {[%emt 0:01:15]} Ne8 {[%emt 0:00:
11]} 88. Nf5 {[%emt 0:00:16]} Kf7 {[%emt 0:00:10]} 89. Ke3 {[%emt 0:01:09]} Kf6
{[%emt 0:00:17]} 90. Kf4 {[%emt 0:00:10]} Kf7 {[%emt 0:00:16]} 91. Kg5 {
[%emt 0:00:11]} Kf8 {[%emt 0:00:42]} 92. Kg6 {[%emt 0:00:38]} Nc7 {[%emt 0:00:
10]} 93. Kf6 {[%emt 0:00:12]} Nxd5+ {[%emt 0:00:20]} 94. Ke6 {[%emt 0:00:10]}
Nc3 {[%emt 0:00:10]} 95. Nxd6 {[%emt 0:00:10]} Na4 {[%emt 0:00:54]} 96. Kd7 {
[%emt 0:00:42]} Nb2 {[%emt 0:00:52]} 97. Kc6 {[%emt 0:00:54]} Nc4 {[%emt 0:00:
10]} 98. Nxb5 {[%emt 0:00:10]} Ke7 {[%emt 0:00:10]} 99. a4 {[%emt 0:00:16]} Kd8
{[%emt 0:00:31]} 100. Nc3 {[%emt 0:00:24]} Kc8 {[%emt 0:00:49]} 101. Kb5 {
[%emt 0:00:10]} Nd6+ {[%emt 0:00:14]} 102. Kxb6 {[%emt 0:00:10]} Kb8 {[%emt 0:
00:10]} 103. a5 {[%emt 0:00:23]} Nc8+ {[%emt 0:00:18]} 104. Kc5 {[%emt 0:00:23]
} Kb7 {[%emt 0:00:14]} 105. Nd5 {[%emt 0:00:10]} Ka6 {[%emt 0:00:10]} 106. Kc4
{[%emt 0:01:52]} Nd6+ {[%emt 0:00:10]} 107. Kb3 {[%emt 0:00:10]} Kb5 {[%emt 0:
00:10]} 108. Nc3+ {[%emt 0:00:10]} Kc6 {[%emt 0:00:10]} 109. Ka4 {[%emt 0:00:
40]} Nc4 {[%emt 0:00:10]} 110. b5+ {[%emt 0:00:22]} Kc5 {[%emt 0:00:10]} 111.
Ne4+ {[%emt 0:00:10]} Kd5 {[%emt 0:00:10]} 112. Kb4 {[%emt 0:00:10]} Ne5 {
[%emt 0:00:10]} 113. Nc3+ {[%emt 0:00:10]} Kd6 {[%emt 0:00:10]} 114. a6 {
[%emt 0:00:39]} Kc7 {[%emt 0:00:14]} 115. Nd5+ {[%emt 0:00:11]} Kb8 {[%emt 0:
00:10]} 116. b6 {[%emt 0:00:11]} Nd7 {[%emt 0:00:10]} 117. Kb5 {[%emt 0:00:10]}
Kc8 {[%emt 0:00:10]} 118. Nc7 {[%emt 0:00:20]} 1-0

[Event "28th North American Open"]
[Site "Las Vegas"]
[Date "2018.12.29"]
[Round "7.4"]
[White "Coleman, Teddy"]
[Black "Brattain, Mika"]
[Result "0-1"]
[ECO "E73"]
[WhiteElo "2361"]
[BlackElo "2411"]
[PlyCount "90"]
[EventDate "2018.12.??"]
[EventType "swiss"]
[EventRounds "9"]
[EventCountry "USA"]
[TimeControl "6600+10"]
[WhiteClock "0:22:44"]
[BlackClock "1:10:26"]

1. d4 {[%emt 0:00:00]} Nf6 {[%emt 0:00:00]} 2. c4 {[%emt 0:00:00]} g6 {[%emt 0:
00:00]} 3. Nc3 {[%emt 0:00:00]} Bg7 {[%emt 0:00:00]} 4. e4 {[%emt 0:00:00]} d6
{[%emt 0:00:00]} 5. Be2 {[%emt 0:00:00]} O-O {[%emt 0:00:00]} 6. Be3 {[%emt 0:
00:00]} c5 {[%emt 0:00:00]} 7. d5 {[%emt 0:00:00]} e6 {[%emt 0:00:00]} 8. Nf3 {
[%emt 0:00:00]} exd5 {[%emt 0:00:00]} 9. cxd5 {[%emt 0:00:00]} Bg4 {[%emt 0:00:
00]} 10. Nd2 {[%emt 0:00:00]} Bxe2 {[%emt 0:00:00]} 11. Qxe2 {[%emt 0:00:00]}
Re8 {[%emt 0:00:00]} 12. O-O {[%emt 0:00:00]} Na6 {[%emt 0:00:00]} 13. Kh1 {
[%emt 0:00:00]} Nc7 {[%emt 0:01:03]} 14. a4 {[%emt 0:00:00]} a6 {[%emt 0:04:31]
} 15. a5 {[%emt 0:08:31]} Rb8 {[%emt 0:01:12]} 16. f3 {[%emt 0:03:25]} Nd7 {
[%emt 0:01:03]} 17. Nc4 {[%emt 0:22:50]} Ne5 {[%emt 0:00:26]} 18. f4 {[%emt 0:
01:45]} Nxc4 {[%emt 0:00:30]} 19. Qxc4 {[%emt 0:00:10]} Nb5 {[%emt 0:06:01]}
20. e5 {[%emt 0:04:16]} Nxc3 {[%emt 0:12:23]} 21. bxc3 {[%emt 0:00:44]} dxe5 {
[%emt 0:00:25]} 22. f5 {[%emt 0:03:43]} e4 {[%emt 0:07:00]} 23. Rad1 {[%emt 0:
17:05]} Qd7 {[%emt 0:11:26]} 24. f6 {[%emt 0:10:12]} Bf8 {[%emt 0:00:10]} 25.
Qa2 {[%emt 0:13:25]} Bd6 {[%emt 0:01:57]} 26. c4 {[%emt 0:02:08]} Re5 {[%emt 0:
03:17]} 27. Bf4 {[%emt 0:03:37]} Rf5 {[%emt 0:01:07]} 28. Bxd6 {[%emt 0:00:14]}
Rxf1+ {[%emt 0:06:45]} 29. Rxf1 {[%emt 0:00:10]} Qxd6 {[%emt 0:00:10]} 30. Qd2
{[%emt 0:01:46]} b5 {[%emt 0:01:05]} 31. axb6 {[%emt 0:01:34]} Rxb6 {[%emt 0:
00:10]} 32. h3 {[%emt 0:06:18]} Qe5 {[%emt 0:05:25]} 33. Qf4 {[%emt 0:01:31]}
Qxf4 {[%emt 0:00:41]} 34. Rxf4 {[%emt 0:00:10]} e3 {[%emt 0:00:22]} 35. Re4 {
[%emt 0:00:38]} Rxf6 {[%emt 0:00:10]} 36. Rxe3 Rf4 {[%emt 0:00:24]} 37. d6 {
[%emt 0:05:01]} Rd4 {[%emt 0:00:15]} 38. Re5 {[%emt 0:00:10]} Rxd6 {[%emt 0:00:
13]} 39. Rxc5 {[%emt 0:00:10]} Kf8 {[%emt 0:00:42]} 40. Kh2 {[%emt 0:01:53]}
Ke7 {[%emt 0:00:41]} 41. Kg3 {[%emt 0:00:00]} Rf6 {[%emt 0:00:00]} 42. Rd5 {
[%emt 0:00:00]} Rf5 {[%emt 0:00:00]} 43. Rd2 {[%emt 0:00:00]} a5 {[%emt 0:00:
00]} 44. Rd3 {[%emt 0:00:00]} h5 {[%emt 0:00:00]} 45. h4 {[%emt 0:00:00]} a4 {
[%emt 0:00:00]} 0-1

[Event "28th North American Open"]
[Site "Las Vegas"]
[Date "2018.12.29"]
[Round "7"]
[White "Hong, Andrew"]
[Black "Yanayt, Eugene"]
[Result "1/2-1/2"]
[ECO "B90"]
[WhiteElo "2390"]
[BlackElo "2122"]
[PlyCount "51"]
[EventDate "2018.12.??"]
[EventType "swiss"]
[EventRounds "9"]
[EventCountry "USA"]
[TimeControl "6600+10"]
[WhiteClock "0:04:58"]
[BlackClock "0:14:46"]

1. e4 {[%emt 0:19:40]} c5 {[%emt 0:19:57]} 2. Nf3 {[%emt 0:00:18]} d6 {[%emt 0:
00:00]} 3. d4 {[%emt 0:00:01]} cxd4 {[%emt 0:00:00]} 4. Nxd4 {[%emt 0:00:00]}
Nf6 {[%emt 0:00:00]} 5. Nc3 {[%emt 0:00:00]} a6 {[%emt 0:00:00]} 6. h3 {
[%emt 0:00:00]} g6 {[%emt 0:00:00]} 7. g4 {[%emt 0:11:27]} Bg7 {[%emt 0:00:00]}
8. Bg2 {[%emt 0:01:18]} O-O {[%emt 0:00:00]} 9. Be3 {[%emt 0:08:58]} Nc6 {
[%emt 0:00:18]} 10. Qd2 {[%emt 0:11:11]} Bd7 {[%emt 0:00:08]} 11. f4 {[%emt 0:
08:29]} Rc8 {[%emt 0:02:00]} 12. Nb3 {[%emt 0:08:55]} b5 {[%emt 0:04:26]} 13.
a3 {[%emt 0:05:00]} Be6 {[%emt 0:19:43]} 14. O-O {[%emt 0:16:38]} Nd7 {[%emt 0:
06:13]} 15. Qf2 {[%emt 0:08:53]} Bxc3 {[%emt 0:15:21]} 16. bxc3 {[%emt 0:00:30]
} Na5 {[%emt 0:00:00]} 17. Nd4 {[%emt 0:07:22]} Bc4 {[%emt 0:08:34]} 18. Rfd1 {
[%emt 0:03:39]} e5 {[%emt 0:08:13]} 19. Nf3 {[%emt 0:00:00]} Qe7 {[%emt 0:00:
38]} 20. Qd2 {[%emt 0:00:00]} Be6 {[%emt 0:04:24]} 21. Bf1 {[%emt 0:00:00]} Nc5
{[%emt 0:03:04]} 22. Qxd6 {[%emt 0:00:00]} Qxd6 {[%emt 0:00:00]} 23. Rxd6 {
[%emt 0:00:00]} Nxe4 {[%emt 0:04:23]} 24. Rxa6 {[%emt 0:00:00]} Nc4 {[%emt 0:
02:15]} 25. Bxc4 {[%emt 0:00:00]} Rxc4 {[%emt 0:00:00]} 26. fxe5 {[%emt 0:00:
00]} 1/2-1/2

[Event "28th North American Open"]
[Site "Las Vegas"]
[Date "2018.12.29"]
[Round "7"]
[White "Peng, Shunkai"]
[Black "Li, Ruifeng"]
[Result "0-1"]
[ECO "B53"]
[WhiteElo "2285"]
[BlackElo "2559"]
[PlyCount "84"]
[EventDate "2018.12.??"]
[EventType "swiss"]
[EventRounds "9"]
[EventCountry "USA"]
[TimeControl "6600+10"]
[WhiteClock "0:01:39"]
[BlackClock "0:01:53"]

1. e4 {[%emt 0:19:40]} c5 {[%emt 0:20:09]} 2. Nf3 {[%emt 0:00:16]} d6 {[%emt 0:
00:00]} 3. d4 {[%emt 0:00:23]} cxd4 {[%emt 0:00:00]} 4. Qxd4 {[%emt 0:00:00]}
Nc6 {[%emt 0:00:00]} 5. Bb5 {[%emt 0:00:00]} a6 {[%emt 0:00:00]} 6. Bxc6+ {
[%emt 0:00:00]} bxc6 {[%emt 0:00:00]} 7. O-O {[%emt 0:01:00]} e5 {[%emt 0:00:
00]} 8. Qa4 {[%emt 0:04:50]} Qc7 {[%emt 0:00:00]} 9. c4 {[%emt 0:02:28]} Bd7 {
[%emt 0:00:00]} 10. Re1 {[%emt 0:07:18]} Ne7 {[%emt 0:00:06]} 11. Bd2 {[%emt 0:
03:50]} Ng6 {[%emt 0:01:44]} 12. c5 {[%emt 0:13:06]} d5 {[%emt 0:19:35]} 13.
exd5 {[%emt 0:15:47]} Bxc5 {[%emt 0:00:00]} 14. Qa5 {[%emt 0:20:00]} Bb6 {
[%emt 0:04:38]} 15. Qc3 {[%emt 0:06:44]} f6 {[%emt 0:01:06]} 16. Rc1 {[%emt 0:
05:17]} Ne7 {[%emt 0:03:24]} 17. dxc6 {[%emt 0:01:32]} Qxc6 {[%emt 0:05:12]}
18. Na3 {[%emt 0:02:10]} O-O {[%emt 0:01:25]} 19. Qb3+ {[%emt 0:01:47]} Qe6 {
[%emt 0:00:00]} 20. Bb4 {[%emt 0:00:31]} Rfe8 {[%emt 0:08:11]} 21. Nc4 {
[%emt 0:04:24]} Ba7 {[%emt 0:00:00]} 22. Na5 {[%emt 0:00:00]} Nd5 {[%emt 0:03:
20]} 23. Rd1 {[%emt 0:00:00]} Nxb4 {[%emt 0:00:48]} 24. Rxd7 {[%emt 0:00:00]}
Qxb3 {[%emt 0:00:59]} 25. Nxb3 {[%emt 0:00:00]} e4 {[%emt 0:13:47]} 26. Nfd4 {
[%emt 0:00:44]} Nd3 {[%emt 0:14:37]} 27. Kf1 {[%emt 0:00:00]} Bb6 {[%emt 0:01:
42]} 28. Rb1 {[%emt 0:00:48]} Rad8 {[%emt 0:01:36]} 29. Rxd8 {[%emt 0:00:04]}
Rxd8 {[%emt 0:00:00]} 30. Nc6 {[%emt 0:00:00]} Rd7 {[%emt 0:02:02]} 31. f3 {
[%emt 0:00:52]} e3 {[%emt 0:03:23]} 32. g3 {[%emt 0:00:00]} Rc7 {[%emt 0:04:08]
} 33. Nbd4 {[%emt 0:00:53]} Ne5 {[%emt 0:00:25]} 34. Nxe5 {[%emt 0:00:38]} Bxd4
{[%emt 0:00:00]} 35. Nd3 {[%emt 0:00:00]} Rc2 {[%emt 0:00:00]} 36. h4 {[%emt 0:
00:27]} Rd2 {[%emt 0:03:11]} 37. Nf4 {[%emt 0:00:00]} Rh2 {[%emt 0:00:02]} 38.
Re1 {[%emt 0:00:18]} Rf2+ {[%emt 0:00:00]} 39. Kg1 {[%emt 0:00:00]} e2 {
[%emt 0:00:04]} 40. Ng2 {[%emt 0:00:04]} Rf1+ {[%emt 0:00:05]} 41. Kh2 {
[%emt 0:00:00]} Rxe1 {[%emt 0:00:00]} 42. Nxe1 {[%emt 0:00:00]} Bf2 {[%emt 0:
00:00]} 0-1